lending/lending_fUSD_20250706
["ID","MTS","AMOUNT","RATE_DAILY","PERIOD"]
[369961059,1751799047229,-460.0,0.00019178,2]
[369961061,1751799047240,-836.41,0.00019178,2]
[369961063,1751799047249,-460.0,0.00019178,2]
[369961065,1751799047259,-460.0,0.00019178,2]
[369961067,1751799047269,-460.0,0.00019178,2]
[369961069,1751799047280,-460.0,0.00019178,2]
[369961071,1751799047290,-460.0,0.00019178,2]
[369961074,1751799047299,-460.0,0.00019178,2]
[369961076,1751799047310,-460.0,0.00019178,2]
[369961078,1751799047319,-460.0,0.00019178,2]
[369961080,1751799047329,-460.0,0.00019178,2]
[369961082,1751799047338,-460.0,0.00019178,2]
[369961084,1751799047348,-733.91,0.00019178,2]
[369961086,1751799047357,-536.19,0.00019178,2]
[369961088,1751799047366,-460.0,0.00019178,2]
[369961090,1751799047376,-556.37,0.00019178,2]
[369961092,1751799047386,-460.0,0.00019178,2]
[369961094,1751799047395,-1228.25,0.00019178,2]
[369961096,1751799047405,-460.0,0.00019178,2]
[369961098,1751799047415,-946.33,0.00019178,2]
[369961100,1751799047424,-460.0,0.00019178,2]
[369961102,1751799047434,-460.0,0.00019178,2]
[369961104,1751799047444,-457.68260494,0.00019178,2]
[369961106,1751799047453,-1560.52,0.00019178,2]
[369961108,1751799047463,-1000.0,0.00019178,2]
[369961110,1751799047473,-460.0,0.00019178,2]
[369961112,1751799047483,-550.0,0.00019178,2]
[369961114,1751799047493,-460.0,0.00019178,2]
[369961116,1751799047503,-574.28,0.00019178,2]
[369961118,1751799047513,-752.78,0.00019178,2]
[369961120,1751799047523,-950.98,0.00019178,2]
[369961123,1751799047533,-460.0,0.00019178,2]
[369961125,1751799047543,-460.0,0.00019178,2]
[369961127,1751799047552,-460.0,0.00019178,2]
[369961129,1751799047562,-460.0,0.00019178,2]
[369961131,1751799047572,-460.0,0.00019178,2]
[369961133,1751799047583,-460.0,0.00019178,2]
[369961135,1751799047593,-460.0,0.00019178,2]
[369961137,1751799047603,-460.0,0.00019178,2]
[369961139,1751799047613,-460.0,0.00019178,2]
[369961141,1751799047623,-460.0,0.00019178,2]
[369961143,1751799047633,-2081.72,0.00019178,2]
[369961145,1751799047643,-460.0,0.00019178,2]
[369961147,1751799047652,-460.0,0.00019178,2]
[369961149,1751799047662,-619.02,0.00019178,2]
[369961151,1751799047673,-460.0,0.00019178,2]
[369961153,1751799047685,-460.0,0.00019178,2]
[369961155,1751799047694,-927.07,0.00019178,2]
[369961157,1751799047706,-460.0,0.00019178,2]
[369961159,1751799047716,-460.0,0.00019178,2]
[369961162,1751799047726,-700.11,0.00019178,2]
[369961164,1751799047736,-460.0,0.00019178,2]
[369961166,1751799047746,-460.0,0.00019178,2]
[369961168,1751799047756,-400.03333675,0.00019178,2]
[369961170,1751799047766,-249.30687357,0.00019178,2]
[369961172,1751799047776,-460.0,0.00019178,2]
[369961174,1751799047786,-460.0,0.00019178,2]
[369961176,1751799047796,-460.0,0.00019178,2]
[369961178,1751799047806,-460.0,0.00019178,2]
[369961180,1751799047815,-460.0,0.00019178,2]
[369961182,1751799047825,-460.0,0.00019178,2]
[369961184,1751799047835,-824.05,0.00019178,2]
[369961186,1751799047845,-460.0,0.00019178,2]
[369961188,1751799047855,-478.15,0.00019178,2]
[369961190,1751799047865,-732.99,0.00019178,2]
[369961193,1751799047875,-492.14,0.00019178,2]
[369961195,1751799047885,-460.0,0.00019178,2]
[369961197,1751799047895,-460.0,0.00019178,2]
[369961199,1751799047904,-460.0,0.00019178,2]
[369961201,1751799047914,-510.42,0.00019178,2]
[369961203,1751799047924,-468.71359458,0.00019178,2]
[369961205,1751799047934,-727.07,0.00019178,2]
[369961207,1751799047944,-460.0,0.00019178,2]
[369961209,1751799047954,-158.45987597,0.00019178,2]
[369961211,1751799047964,-460.0,0.00019178,2]
[369961213,1751799047974,-460.0,0.00019178,2]
[369961215,1751799047984,-1800.65,0.00019178,2]
[369961217,1751799047994,-509.39,0.00019178,2]
[369961219,1751799048003,-460.0,0.00019178,2]
[369961221,1751799048013,-1229.48,0.00019178,2]
[369961223,1751799048022,-460.0,0.00019178,2]
[369961225,1751799048032,-500.0,0.00019178,2]
[369961227,1751799048043,-500.0,0.00019178,2]
[369961229,1751799048054,-151.0,0.00019178,2]
[369961231,1751799048063,-903.54,0.00019178,2]
[369961233,1751799048074,-151.0,0.00019178,2]
[369961235,1751799048084,-460.0,0.00019178,2]
[369961237,1751799048094,-2439.22,0.00019178,2]
[369961239,1751799048104,-460.0,0.00019178,2]
[369961241,1751799048115,-460.0,0.00019178,2]
[369961243,1751799048125,-460.0,0.00019178,2]
[369961245,1751799048136,-460.0,0.00019178,2]
[369961248,1751799048145,-300.0,0.00019178,2]
[369961250,1751799048156,-151.0,0.00019178,2]
[369961252,1751799048166,-460.0,0.00019178,2]
[369961254,1751799048180,-151.0,0.00019178,2]
[369961256,1751799048190,-460.0,0.00019178,2]
[369961258,1751799048200,-587.64699463,0.00019178,2]
[369961260,1751799048209,-460.0,0.00019178,2]
[369961262,1751799048219,-460.0,0.00019178,2]
[369961264,1751799048229,-460.0,0.00019178,2]
[369961266,1751799048239,-460.0,0.00019178,2]
[369961268,1751799048249,-484.02,0.00019178,2]
[369961270,1751799048259,-460.0,0.00019178,2]
[369961273,1751799048269,-460.0,0.00019178,2]
[369961275,1751799048279,-460.0,0.00019178,2]
[369961277,1751799048289,-6772.49,0.00019178,2]
[369961279,1751799048299,-545.12,0.00019178,2]
[369961281,1751799048309,-800.13,0.00019178,2]
[369961283,1751799048319,-696.02,0.00019178,2]
[369961285,1751799048329,-460.0,0.00019178,2]
[369961287,1751799048340,-460.0,0.00019178,2]
[369961289,1751799048350,-460.0,0.00019178,2]
[369961291,1751799048361,-460.0,0.00019178,2]
[369961293,1751799048372,-627.63,0.00019178,2]
[369961295,1751799048382,-966.27,0.00019178,2]
[369961297,1751799048392,-449.72,0.00019178,2]
[369961299,1751799048402,-833.43,0.00019178,2]
[369961301,1751799048412,-523.19256448,0.00019178,2]
[369961302,1751799048422,-460.0,0.00019178,2]
[369961303,1751799048432,-460.0,0.00019178,2]
[369961304,1751799048443,-717.44,0.00019178,2]
[369961305,1751799048453,-1022.84,0.00019178,2]
[369961306,1751799048463,-1296.35,0.00019178,2]
[369961307,1751799048473,-460.0,0.00019178,2]
[369961308,1751799048484,-460.0,0.00019178,2]
[369961309,1751799048494,-460.0,0.00019178,2]
[369961310,1751799048505,-416.73200216,0.00019178,2]
[369961311,1751799048516,-460.0,0.00019178,2]
[369961312,1751799048527,-460.0,0.00019178,2]
[369961313,1751799048537,-724.76,0.00019178,2]
[369961314,1751799048547,-1972.21,0.00019178,2]
[369961316,1751799048558,-724.76,0.00019178,2]
[369961319,1751799048569,-460.0,0.00019178,2]
[369961321,1751799048579,-460.0,0.00019178,2]
[369961323,1751799048590,-599.99,0.00019178,2]
[369961325,1751799048600,-460.0,0.00019178,2]
[369961327,1751799048610,-679.18,0.00019178,2]
[369961329,1751799048620,-460.0,0.00019178,2]
[369961331,1751799048630,-1131.43,0.00019178,2]
[369961333,1751799048640,-460.0,0.00019178,2]
[369961335,1751799048651,-538.83,0.00019178,2]
[369961337,1751799048661,-460.0,0.00019178,2]
[369961339,1751799048671,-297.68893214,0.00019178,2]
[369961341,1751799048681,-1043.79,0.00019178,2]
[369961343,1751799048691,-821.78,0.00019178,2]
[369961345,1751799048702,-460.0,0.00019178,2]
[369961347,1751799048713,-460.0,0.00019178,2]
[369961349,1751799048724,-460.0,0.00019178,2]
[369961351,1751799048734,-512.97,0.00019178,2]
[369961354,1751799048744,-460.0,0.00019178,2]
[369961356,1751799048754,-724.93,0.00019178,2]
[369961358,1751799048764,-460.0,0.00019178,2]
[369961360,1751799048774,-460.0,0.00019178,2]
[369961362,1751799048783,-463.99099402,0.00019178,2]
[369961364,1751799048799,-896.47,0.00019178,2]
[369961366,1751799048809,-1441.33,0.00019178,2]
[369961368,1751799048818,-460.0,0.00019178,2]
[369961370,1751799048828,-460.0,0.00019178,2]
[369961372,1751799048838,-642.06,0.00019178,2]
[369961374,1751799048848,-1625.78,0.00019178,2]
[369961376,1751799048858,-569.78,0.00019178,2]
[369961378,1751799048868,-460.0,0.00019178,2]
[369961380,1751799048878,-460.0,0.00019178,2]
[369961382,1751799048888,-460.0,0.00019178,2]
[369961384,1751799048898,-693.98,0.00019178,2]
[369961386,1751799048908,-460.0,0.00019178,2]
[369961389,1751799048918,-460.0,0.00019178,2]
[369961391,1751799048928,-460.0,0.00019178,2]
[369961393,1751799048938,-460.0,0.00019178,2]
[369961395,1751799048947,-460.0,0.00019178,2]
[369961397,1751799048958,-460.0,0.00019178,2]
[369961399,1751799048967,-460.0,0.00019178,2]
[369961401,1751799048977,-1521.83,0.00019178,2]
[369961403,1751799048987,-460.0,0.00019178,2]
[369961405,1751799048998,-638.57,0.00019178,2]
[369961407,1751799049010,-460.0,0.00019178,2]
[369961409,1751799049019,-460.0,0.00019178,2]
[369961411,1751799049029,-1308.61,0.00019178,2]
[369961413,1751799049039,-926.34,0.00019178,2]
[369961415,1751799049048,-1561.35,0.00019178,2]
[369961417,1751799049058,-460.0,0.00019178,2]
[369961419,1751799049068,-460.0,0.00019178,2]
[369961422,1751799049077,-837.94,0.00019178,2]
[369961424,1751799049087,-460.0,0.00019178,2]
[369961426,1751799049097,-460.0,0.00019178,2]
[369961428,1751799049107,-460.0,0.00019178,2]
[369961430,1751799049118,-1614.14,0.00019178,2]
[369961431,1751799049128,-460.0,0.00019178,2]
[369961433,1751799049138,-783.33,0.00019178,2]
[369961435,1751799049148,-460.0,0.00019178,2]
[369961437,1751799049158,-587.89803916,0.00019178,2]
[369961439,1751799049168,-460.0,0.00019178,2]
[369961441,1751799049183,-500.0,0.00019178,2]
[369961443,1751799049193,-500.0,0.00019178,2]
[369961466,1751799049416,-460.0,0.00019178,2]
[369961468,1751799049428,-460.0,0.00019178,2]
[369961470,1751799049441,-500.0,0.00019178,2]
[369961472,1751799049450,-460.0,0.00019178,2]
[369961474,1751799049459,-716.77,0.00019178,2]
[369961476,1751799049472,-380.57651948,0.00019178,2]
[369961478,1751799049481,-460.0,0.00019178,2]
[369961480,1751799049491,-1670.67,0.00019178,2]
[369961482,1751799049500,-460.0,0.00019178,2]
[369961484,1751799049509,-460.0,0.00019178,2]
[369961486,1751799049519,-699.37,0.00019178,2]
[369961488,1751799049528,-1487.2,0.00019178,2]
[369961490,1751799049537,-1367.75,0.00019178,2]
[369961492,1751799049547,-587.24,0.00019178,2]
[369961494,1751799049557,-633.14,0.00019178,2]
[369961496,1751799049566,-1104.94,0.00019178,2]
[369961498,1751799049575,-460.0,0.00019178,2]
[369961500,1751799049584,-460.0,0.00019178,2]
[369961502,1751799049594,-898.77,0.00019178,2]
[369961504,1751799049603,-460.0,0.00019178,2]
[369961506,1751799049612,-460.0,0.00019178,2]
[369961508,1751799049621,-460.0,0.00019178,2]
[369961510,1751799049631,-460.0,0.00019178,2]
[369961512,1751799049640,-460.0,0.00019178,2]
[369961514,1751799049650,-460.0,0.00019178,2]
[369961516,1751799049659,-460.0,0.00019178,2]
[369961518,1751799049669,-195.81125522,0.00019178,2]
[369961521,1751799049693,-264.18874478,0.00019178,2]
[369961523,1751799049703,-794.42,0.00019178,2]
[369961525,1751799049712,-460.0,0.00019178,2]
[369961527,1751799049721,-460.0,0.00019178,2]
[369961529,1751799049730,-466.13927519,0.00019178,2]
[369961531,1751799049739,-436.16211749,0.00019178,2]
[369961533,1751799049749,-1222.86,0.00019178,2]
[369961535,1751799049759,-460.0,0.00019178,2]
[369961537,1751799049767,-460.0,0.00019178,2]
[369961538,1751799049777,-1180.54,0.00019178,2]
[369961539,1751799049786,-534.11,0.00019178,2]
[369961541,1751799049796,-460.0,0.00019178,2]
[369961543,1751799049805,-460.0,0.00019178,2]
[369961544,1751799049815,-664.51,0.00019178,2]
[369961546,1751799049824,-460.0,0.00019178,2]
[369961547,1751799049833,-460.0,0.00019178,2]
[369961549,1751799049843,-460.0,0.00019178,2]
[369961551,1751799049851,-843.39,0.00019178,2]
[369961552,1751799049860,-611.52,0.00019178,2]
[369961554,1751799049869,-460.0,0.00019178,2]
[369961556,1751799049878,-1680.59,0.00019178,2]
[369961558,1751799049890,-460.0,0.00019178,2]
[369961559,1751799049900,-460.0,0.00019178,2]
[369961561,1751799049909,-2142.24,0.00019178,2]
[369961563,1751799049919,-805.66,0.00019178,2]
[369961564,1751799049929,-460.0,0.00019178,2]
[369961566,1751799049938,-460.0,0.00019178,2]
[369961567,1751799049947,-595.39,0.00019178,2]
[369961569,1751799049957,-960.62,0.00019178,2]
[369961571,1751799049967,-537.13,0.00019178,2]
[369961573,1751799049976,-460.0,0.00019178,2]
[369961574,1751799049985,-460.0,0.00019178,2]
[369961576,1751799049994,-3917.96,0.00019178,2]
[369961578,1751799050003,-695.04,0.00019178,2]
[369961579,1751799050013,-460.0,0.00019178,2]
[369961581,1751799050022,-1415.35,0.00019178,2]
[369961583,1751799050032,-584.68,0.00019178,2]
[369961584,1751799050042,-553.88720379,0.00019178,2]
[369961586,1751799050052,-460.0,0.00019178,2]
[369961588,1751799050061,-1500.0,0.00019178,2]
[369961590,1751799050071,-460.0,0.00019178,2]
[369961591,1751799050080,-852.06,0.00019178,2]
[369961593,1751799050089,-639.38,0.00019178,2]
[369961595,1751799050099,-1019.09,0.00019178,2]
[369961597,1751799050108,-460.0,0.00019178,2]
[369961598,1751799050119,-460.0,0.00019178,2]
[369961600,1751799050128,-834.1,0.00019178,2]
[369961602,1751799050138,-460.0,0.00019178,2]
[369961604,1751799050146,-460.0,0.00019178,2]
[369961605,1751799050156,-460.0,0.00019178,2]
[369961607,1751799050165,-568.72,0.00019178,2]
[369961608,1751799050178,-460.0,0.00019178,2]
[369961610,1751799050190,-639.12,0.00019178,2]
[369961612,1751799050199,-162.59169409,0.00019178,2]
[369961614,1751799050209,-819.0,0.00019178,2]
[369961616,1751799050218,-460.0,0.00019178,2]
[369961618,1751799050228,-460.0,0.00019178,2]
[369961620,1751799050237,-460.0,0.00019178,2]
[369961621,1751799050247,-460.0,0.00019178,2]
[369961623,1751799050256,-460.0,0.00019178,2]
[369961625,1751799050265,-460.0,0.00019178,2]
[369961627,1751799050274,-1203.36,0.00019178,2]
[369961629,1751799050284,-460.0,0.00019178,2]
[369961630,1751799050293,-1072.47,0.00019178,2]
[369961632,1751799050302,-460.0,0.00019178,2]
[369961634,1751799050312,-460.0,0.00019178,2]
[369961636,1751799050321,-4366.77,0.00019178,2]
[369961637,1751799050332,-714.88,0.00019178,2]
[369961639,1751799050341,-341.4661108,0.00019178,2]
[369962527,1751799956525,236.22,0.00013699,2]
[369962593,1751800231448,-1200.0,0.00017062,2]
[369962594,1751800231458,-300.0,0.00017062,2]
[369962595,1751800231468,-303.73,0.00017063,2]
[369962596,1751800231478,-304.91,0.00017063,2]
[369962597,1751800231487,-305.26,0.00017063,2]
[369962598,1751800231497,-304.52,0.00017063,2]
[369962599,1751800231507,-300.43,0.00017063,2]
[369962600,1751800231516,-302.14,0.00017063,2]
[369962601,1751800231525,-129.91450462,0.00017063,2]
[369962602,1751800231549,-175.11549538,0.00017063,2]
[369962603,1751800231560,-302.31,0.00017063,2]
[369962604,1751800231571,-304.8,0.00017063,2]
[369962605,1751800231582,-500.0,0.00017064,2]
[369962606,1751800231594,-500.0,0.00017064,2]
[369962607,1751800231604,-300.04,0.00017064,2]
[369962608,1751800231613,-302.86,0.00017064,2]
[369962609,1751800231623,-304.5,0.00017064,2]
[369962610,1751800231633,-300.86,0.00017064,2]
[369962611,1751800231642,-303.97,0.00017064,2]
[369962612,1751800231651,-305.88,0.00017064,2]
[369962613,1751800231662,-305.43,0.00017064,2]
[369962614,1751800231671,-300.26,0.00017064,2]
[369962615,1751800231680,-300.52,0.00017064,2]
[369962616,1751800231690,-300.41,0.00017064,2]
[369962617,1751800231699,-305.16,0.00017064,2]
[369962618,1751800231708,-304.64,0.00017122,2]
[369962619,1751800231718,-302.13,0.00017122,2]
[369962620,1751800231727,-545.0,0.00017126,2]
[369962621,1751800231737,-305.15,0.00017519,2]
[369962622,1751800231747,-305.46,0.00017519,2]
[369962623,1751800231758,-1530.54350875,0.000179,2]
[369962624,1751800231768,-200.0,0.00017936,7]
[369962625,1751800231778,-1000.0,0.00017961,2]
[369962626,1751800231787,-150.0,0.00018,2]
[369962627,1751800231796,-154.61693569,0.00018,2]
[369962628,1751800231805,-155.54848802,0.00018,2]
[369962629,1751800231814,-152.75866769,0.00018,2]
[369962630,1751800231824,-463.37,0.00018,2]
[369962632,1751800231833,-800.66,0.00018,2]
[369962634,1751800231842,-800.66,0.00018,2]
[369962635,1751800231852,-222.0,0.000181,2]
[369962637,1751800231861,-463.37,0.00018141,2]
[369962639,1751800231870,-800.66,0.00018141,2]
[369962640,1751800231880,-156.32,0.0001822,2]
[369962642,1751800231889,-433.68,0.00018329,2]
[369962644,1751800231899,-942.5,0.00018493,2]
[369962646,1751800231909,-1530.5435086,0.00018555,2]
[369962648,1751800231919,-207.4,0.00018589,2]
[369962650,1751800231928,-218.0,0.0001859,2]
[369962652,1751800231938,-814.1,0.000186,2]
[369962654,1751800231948,-463.37,0.000186,2]
[369962656,1751800231961,-931.92,0.000186,2]
[369962658,1751800231969,-628.04,0.000186,2]
[369962660,1751800231979,-1600.61,0.000186,2]
[369962661,1751800231987,-7963.34,0.0001863,2]
[369962663,1751800231998,-420.0,0.00018634,2]
[369962665,1751800232007,-4110.0,0.00018706,2]
[369962666,1751800232016,-754.0,0.00018706,2]
[369962668,1751800232026,-7153.0,0.00018706,2]
[369962670,1751800232035,-2000.0,0.0001877,5]
[369962672,1751800232045,-2000.0,0.0001877,5]
[369962674,1751800232054,-463.37,0.000189,2]
[369962676,1751800232064,-1637.97812,0.0001899,2]
[369962678,1751800232073,-44105.23863926,0.00019,12]
[369962681,1751800232089,-544.02,0.00019,12]
[369962683,1751800232100,-2431.20714157,0.00019,12]
[369962685,1751800232115,-570.6249989,0.00019,12]
[369962688,1751800232130,-265.091,0.00019,12]
[369962690,1751800232141,-922.4592818,0.00019,12]
[369962692,1751800232156,-881.71597347,0.00019,12]
[369962694,1751800232167,-2061.97254873,0.00019,12]
[369962697,1751800232178,-635.16,0.00019,12]
[369962699,1751800232190,-4895.51758542,0.00019,12]
[369962701,1751800232201,-787.0,0.00019,12]
[369962703,1751800232212,-2820.15608459,0.00019,12]
[369962705,1751800232223,-629.84571173,0.00019,12]
[369962707,1751800232235,-1433.074852,0.00019,12]
[369962711,1751800232256,-615.15834718,0.00019,12]
[369962713,1751800232268,-3547.67952002,0.00019,12]
[369962715,1751800232277,-2000.0,0.00019,2]
[369962717,1751800232286,-231.47,0.00019,2]
[369962719,1751800232296,-679.69830248,0.00019,2]
[369962721,1751800232308,-1320.30169752,0.00019,2]
[369962723,1751800232317,-1692.6046561,0.00019,2]
[369962725,1751800232328,-750.83790753,0.00019,2]
[369962726,1751800232344,-675.4354771,0.00019,2]
[369962729,1751800237829,-858.0,0.00018706,2]
[369962730,1751800237841,-7455.5008284,0.00019,2]
[369962731,1751800237883,-511.91971071,0.00019,2]
[369962732,1751800237931,-5300.19595435,0.00019,2]
[369962733,1751800237942,-2615.92995068,0.00019,2]
[369962734,1751800237954,-997.57551513,0.00019,2]
[369962735,1751800237965,-433.68,0.00019016,2]
[369962736,1751800237975,-139.45280148,0.00019039,2]
[369962897,1751800239735,-125.54719852,0.00019039,2]
[369962899,1751800239744,-151.021695,0.00019062,2]
[369962901,1751800239754,-213.0,0.0001907,2]
[369962903,1751800239763,-280.20949073,0.00019078,2]
[369962905,1751800239773,-218.96720853,0.00019078,2]
[369962907,1751800239782,-357.1776086,0.00019078,2]
[369962909,1751800239792,-2991.28109487,0.00019078,2]
[369962913,1751800239816,-2008.71890513,0.00019078,2]
[369962915,1751800239825,-2016.66,0.000191,2]
[369962917,1751800239834,-218.96720841,0.00019116,2]
[369962919,1751800239843,-832.76,0.00019148,2]
[369962921,1751800239853,-381.537,0.00019151,2]
[369962923,1751800239862,-542.57224246,0.00019152,2]
[369962925,1751800239873,-1122.90775754,0.00019152,2]
[369962927,1751800239883,-218.96720841,0.00019154,2]
[369962929,1751800239892,-280.20949071,0.00019169,2]
[369962931,1751800239902,-199.97263557,0.00019177,2]
[369962933,1751800239911,-500.0,0.00019177,2]
[369962935,1751800239920,-500.0,0.00019177,2]
[369962937,1751800239929,-238.46869946,0.00019177,2]
[369962939,1751800239938,-395.34858354,0.00019177,2]
[369962941,1751800239947,-193.56260534,0.00019177,2]
[369962942,1751800239956,-232.90678279,0.00019177,2]
[369962945,1751800239971,-500.0,0.00019177,2]
[369962946,1751800239980,-500.0,0.00019177,2]
[369962948,1751800239989,-500.0,0.00019177,2]
[369962950,1751800239999,-264.88344038,0.00019177,2]
[369962952,1751800240010,-500.0,0.00019177,2]
[369962954,1751800240019,-9642.20396049,0.00019178,2]
[369962956,1751800240028,-460.0,0.00019178,2]
[369962958,1751800240039,-460.0,0.00019178,2]
[369962960,1751800240048,-460.0,0.00019178,2]
[369962963,1751800240057,-460.0,0.00019178,2]
[369962965,1751800240067,-306.76440408,0.00019178,2]
[369962966,1751800240076,-460.0,0.00019178,2]
[369962969,1751800240086,-460.0,0.00019178,2]
[369962971,1751800240095,-460.0,0.00019178,2]
[369962973,1751800240105,-460.0,0.00019178,2]
[369962975,1751800240115,-189.77494565,0.00019178,2]
[369962977,1751800240124,-460.0,0.00019178,2]
[369962979,1751800240133,-439.34228137,0.00019178,2]
[369962981,1751800240142,-210.0,0.00019178,2]
[369962983,1751800240152,-183.53556323,0.00019178,2]
[369962985,1751800240161,-460.0,0.00019178,2]
[369962987,1751800240170,-460.0,0.00019178,2]
[369962989,1751800240179,-460.0,0.00019178,2]
[369962991,1751800240189,-544.33061291,0.00019178,2]
[369962993,1751800240198,-560.05045181,0.00019178,2]
[369962995,1751800240207,-589.8290281,0.00019178,2]
[369962996,1751800240217,-460.0,0.00019178,2]
[369962999,1751800240228,-460.0,0.00019178,2]
[369963001,1751800240238,-460.0,0.00019178,2]
[369963003,1751800240247,-460.0,0.00019178,2]
[369963005,1751800240256,-460.0,0.00019178,2]
[369963007,1751800240266,-408.25618747,0.00019178,2]
[369963009,1751800240275,-521.4481887,0.00019178,2]
[369963011,1751800240285,-460.0,0.00019178,2]
[369963013,1751800240294,-460.0,0.00019178,2]
[369963015,1751800240304,-384.76190057,0.00019178,2]
[369963075,1751800240858,-75.23809943,0.00019178,2]
[369963077,1751800240868,-460.0,0.00019178,2]
[369963079,1751800240877,-571.15032153,0.00019178,2]
[369963081,1751800240887,-490.0,0.00019178,2]
[369963083,1751800240897,-460.0,0.00019178,2]
[369963085,1751800240906,-518.75637217,0.00019178,2]
[369963090,1751800240941,-40.94119735,0.00019178,2]
[369963092,1751800240951,-460.0,0.00019178,2]
[369963094,1751800240960,-560.82930953,0.00019178,2]
[369963096,1751800240969,-460.0,0.00019178,2]
[369963098,1751800240978,-210.33377106,0.00019178,2]
[369963100,1751800240990,-249.66622894,0.00019178,2]
[369963102,1751800240999,-460.0,0.00019178,2]
[369963104,1751800241009,-274.74402981,0.00019178,2]
[369963107,1751800241021,-185.25597019,0.00019178,2]
[369963109,1751800241029,-460.0,0.00019178,2]
[369963111,1751800241039,-291.91561822,0.00019178,2]
[369963113,1751800241048,-460.0,0.00019178,2]
[369963115,1751800241057,-460.0,0.00019178,2]
[369963117,1751800241066,-490.0,0.00019178,2]
[369963119,1751800241075,-460.0,0.00019178,2]
[369963120,1751800241084,-460.0,0.00019178,2]
[369963123,1751800241094,-189.69797191,0.00019178,2]
[369963125,1751800241103,-460.0,0.00019178,2]
[369963127,1751800241113,-460.0,0.00019178,2]
[369963129,1751800241122,-460.0,0.00019178,2]
[369963131,1751800241132,-460.0,0.00019178,2]
[369963133,1751800241141,-460.0,0.00019178,2]
[369963135,1751800241150,-460.0,0.00019178,2]
[369963137,1751800241159,-460.0,0.00019178,2]
[369963138,1751800241168,-460.0,0.00019178,2]
[369963139,1751800241177,-524.9415357,0.00019178,2]
[369963141,1751800241186,-460.0,0.00019178,2]
[369963143,1751800241195,-460.0,0.00019178,2]
[369963145,1751800241205,-460.0,0.00019178,2]
[369963147,1751800241215,-460.0,0.00019178,2]
[369963149,1751800241224,-460.0,0.00019178,2]
[369963151,1751800241234,-460.0,0.00019178,2]
[369963154,1751800241247,-460.0,0.00019178,2]
[369963155,1751800241257,-476.70415289,0.00019178,2]
[369963158,1751800241268,-156.42782145,0.00019178,2]
[369963159,1751800241277,-460.0,0.00019178,2]
[369963162,1751800241287,-464.3534661,0.00019178,2]
[369963302,1751800242692,-160.0,0.00019177,2]
[369963304,1751800242702,-255.8965339,0.00019178,2]
[369963306,1751800242712,-460.0,0.00019178,2]
[369963308,1751800242721,-460.0,0.00019178,2]
[369963311,1751800242731,-460.0,0.00019178,2]
[369963312,1751800242740,-460.0,0.00019178,2]
[369963314,1751800242749,-155.60526203,0.00019178,2]
[369963316,1751800242758,-460.0,0.00019178,2]
[369963319,1751800242768,-460.0,0.00019178,2]
[369963321,1751800242777,-460.0,0.00019178,2]
[369963323,1751800242787,-460.0,0.00019178,2]
[369963324,1751800242796,-460.0,0.00019178,2]